bitfinex-derivatives/quotes_BTCF0:USTF0_20240814
["timestamp","ask_amount","ask_price","bid_price","bid_amount"]
[1723638695915,0.00010109,61224.0,61215.0,0.00024492]
[1723638696218,0.00010109,61224.0,61222.0,0.442431]
[1723638696515,0.3608,61265.0,61225.0,0.081628]
[1723638696710,0.3608,61265.0,61242.0,0.3608]
[1723638697016,0.3608,61270.0,61256.0,0.3608]
[1723638697207,0.3608,61278.0,61268.0,0.3608]
[1723638697517,0.3608,61273.0,61255.0,0.3608]
[1723638697725,0.3608,61263.0,61257.0,0.00024492]
[1723638697916,0.081584,61259.0,61257.0,0.00024492]
[1723638698119,0.3608,61258.0,61257.0,1e-08]
[1723638698314,0.85052,61258.0,61257.0,1e-08]
[1723638698828,1.25052,61258.0,61257.0,1e-08]
[1723638699013,0.3608,61258.0,61257.0,1e-08]
[1723638699207,0.7608,61258.0,61240.0,0.00015734]
[1723638699411,0.3608,61241.0,61219.0,0.3608]
[1723638699614,0.3608,61223.0,61209.0,0.081649]
[1723638699813,0.3608,61228.0,61219.0,0.081635]
[1723638700013,0.081595,61251.0,61220.0,0.3608]
[1723638700014,0.3608,61241.0,61220.0,0.3608]
[1723638700208,0.3608,61228.0,61206.0,0.3608]
[1723638700416,0.00015734,61227.0,61205.0,0.3608]
[1723638700614,0.081641,61216.0,61205.0,0.3608]
[1723638700919,0.3608,61212.0,61190.0,0.3608]
[1723638701317,0.3608,61212.0,61196.0,0.3608]
[1723638701516,0.3608,61212.0,61204.0,0.00024492]
[1723638701713,0.3608,61207.0,61204.0,0.00024492]
[1723638701922,0.3608,61212.0,61205.0,0.3608]
[1723638702123,0.00024492,61214.0,61213.0,0.081644]
[1723638702318,0.3608,61227.0,61213.0,0.4]
[1723638702525,0.081588,61256.0,61220.0,0.3608]
[1723638702526,0.3608,61229.0,61220.0,0.3608]
[1723638702915,0.3608,61221.0,61214.0,0.081642]
[1723638703124,0.3608,61215.0,61214.0,0.081642]
[1723638703317,0.3608,61259.0,61218.0,0.3608]
[1723638703512,0.3608,61267.0,61243.0,0.3608]
[1723638703711,0.3608,61280.0,61260.0,0.3608]
[1723638704226,0.3608,61274.0,61253.0,0.3608]
[1723638704413,0.70654,61307.0,61233.0,0.00019225]
[1723638704414,0.3608,61255.0,61233.0,0.00019225]
[1723638704613,0.3608,61270.0,61254.0,0.3608]
[1723638704814,0.3608,61277.0,61266.0,0.3608]
[1723638705418,0.17330715,61279.0,61266.0,0.3608]
[1723638705614,0.17330715,61279.0,61269.0,0.3608]
[1723638705821,0.3608,61282.0,61269.0,0.3608]
[1723638705822,0.081555,61280.0,61269.0,0.3608]
[1723638706010,0.3608,61282.0,61269.0,0.3608]
[1723638706920,0.3608,61276.0,61268.0,0.00024492]
[1723638707117,0.442367,61271.0,61268.0,0.00024492]
[1723638707318,0.081569,61270.0,61268.0,0.00024492]
[1723638707522,0.081581,61261.0,61242.0,0.3608]
[1723638707825,0.3608,61258.0,61247.0,0.3608]
[1723638708017,0.3608,61251.0,61239.0,0.2286]
[1723638708219,0.3608,61246.0,61239.0,0.2286]
[1723638708421,0.3608,61240.0,61230.0,0.008437]
[1723638708623,0.3608,61240.0,61234.0,0.3608]
[1723638709020,0.3608,61240.0,61230.0,0.00024492]
[1723638709217,0.00024492,61243.0,61230.0,0.00024492]
[1723638709825,0.442415,61235.0,61230.0,0.00024492]
[1723638710012,0.081619,61232.0,61211.0,0.22856]
[1723638710322,0.081646,61212.0,61211.0,0.00830439]
[1723638710512,0.3608,61217.0,61208.0,0.3608]
[1723638710919,0.3608,61225.0,61208.0,0.3608]
[1723638710920,0.00019225,61216.0,61208.0,0.3608]
[1723638711815,0.36104492,61219.0,61215.0,0.3608]
[1723638711816,1e-08,61219.0,61215.0,0.3608]
[1723638712015,1e-08,61219.0,61218.0,0.081638]
[1723638712526,1e-08,61219.0,61218.0,0.571678]
[1723638712731,1e-08,61219.0,61215.0,0.7216]
[1723638712732,1e-08,61219.0,61215.0,0.3608]
[1723638712922,1e-08,61219.0,61212.0,0.3608]
[1723638713320,1e-08,61219.0,61218.0,0.3608]
[1723638713628,1e-08,61219.0,61218.0,0.442438]
[1723638713822,1e-08,61219.0,61218.0,1.332478]
[1723638714014,1e-08,61219.0,61218.0,1.25084]
[1723638714219,1e-08,61219.0,61218.0,1.332478]
[1723638714529,0.3608,61246.0,61218.0,1.332478]
[1723638714530,0.3608,61246.0,61244.0,0.081603]
[1723638714724,0.3608,61246.0,61218.0,0.7608]
[1723638714725,0.3608,61246.0,61241.0,0.3608]
[1723638715222,0.3608,61275.0,61241.0,0.7608]
[1723638715423,0.3608,61290.0,61273.0,0.3608]
[1723638715730,0.3608,61285.0,61273.0,0.3608]
[1723638715920,0.3608,61290.0,61273.0,0.3608]
[1723638716120,0.081548,61285.0,61273.0,0.3608]
[1723638716321,0.08155,61284.0,61273.0,0.3608]
[1723638716520,0.3608,61290.0,61273.0,0.3608]
[1723638716829,1e-08,61288.0,61286.0,0.3608]
[1723638717126,1e-08,61288.0,61274.0,0.3608]
[1723638717127,0.48952,61287.0,61274.0,0.3608]
[1723638717320,0.3608,61284.0,61275.0,0.00024492]
[1723638717515,0.3608,61285.0,61275.0,0.00024492]
[1723638717718,0.3608,61276.0,61259.0,0.3608]
[1723638717922,0.3608,61276.0,61206.0,0.7057]
[1723638717923,0.3608,61260.0,61242.0,0.3608]
[1723638718123,0.0816,61247.0,61242.0,0.3608]
[1723638718429,0.081604,61243.0,61242.0,0.00843481]
[1723638718625,0.3608,61252.0,61235.0,0.3608]
[1723638718626,0.3608,61246.0,61235.0,0.3608]
[1723638718930,0.3608,61246.0,61227.0,0.36098679]
[1723638718931,0.3608,61257.0,61240.0,0.3608]
[1723638719117,0.00024491,61249.0,61245.0,0.3608]
[1723638719517,0.00024491,61249.0,61236.0,0.00024491]
[1723638719518,0.00024491,61249.0,61244.0,0.3608]
[1723638720322,0.081602,61245.0,61244.0,0.3608]
[1723638720524,0.932238,61248.0,61240.0,0.00024491]
[1723638720723,0.3608,61243.0,61240.0,0.00024491]
[1723638720923,0.081607,61241.0,61240.0,0.00024491]
[1723638721136,0.163214,61241.0,61240.0,1e-08]
[1723638721327,0.081624,61228.0,61215.0,0.3608]
[1723638721529,0.3608,61220.0,61208.0,0.00842835]
[1723638721733,0.3608,61220.0,61193.0,0.08167]
[1723638721734,0.7216,61213.0,61188.0,0.3608]
[1723638722029,0.7216,61213.0,61179.0,5.52903]
[1723638722030,0.081688,61180.0,61179.0,5.16823]
[1723638722330,0.081688,61180.0,61179.0,4.98230511]
[1723638722331,0.442488,61180.0,61179.0,4.98230511]
[1723638722529,1.59760216,61180.0,61179.0,1.00184711]
[1723638722828,2.04024966,61180.0,61173.0,0.00024518]
[1723638723023,2.04024966,61180.0,61156.0,0.49035999]
[1723638723024,0.3608,61174.0,61156.0,0.49035999]
[1723638723225,0.3608,61157.0,61134.0,0.00018998]
[1723638723422,0.7057,61144.0,61134.0,0.00849234]
[1723638723733,0.7057,61144.0,61134.0,0.00018998]
[1723638723734,0.3608,61138.0,61134.0,0.00018998]
[1723638723920,0.589,61135.0,61134.0,0.00018998]
[1723638724119,0.589,61135.0,61117.0,0.3608]
[1723638724327,0.3608,61123.0,61109.0,0.3608]
[1723638724530,0.00017075,61122.0,61112.0,0.49035999]
[1723638724827,0.17596525,61137.0,61129.0,0.081756]
[1723638725030,0.3608,61152.0,61136.0,0.31439474]
[1723638725233,0.3608,61152.0,61145.0,0.31439474]
[1723638725427,0.671552,61163.0,61149.0,0.3608]
[1723638725428,0.00084,61163.0,61149.0,0.3608]
[1723638725627,0.00084,61163.0,61092.0,0.42514205]
[1723638725628,0.589,61150.0,61129.0,0.3608]
[1723638725822,0.17072623,61151.0,61149.0,0.3608]
[1723638726030,0.00024539,61155.0,61149.0,0.3608]
[1723638726228,0.3608,61179.0,61162.0,0.31439474]
[1723638726433,0.3608,61192.0,61188.0,0.31439474]
[1723638726629,0.3608,61206.0,61191.0,0.31439474]
[1723638726828,0.3608,61206.0,61197.0,0.31439474]
[1723638727139,0.3608,61201.0,61190.0,0.3608]
[1723638727325,0.589,61222.0,61148.0,0.589]
[1723638727326,0.3608,61217.0,61205.0,0.31439474]
[1723638727527,0.3608,61217.0,61205.0,0.3608]
[1723638727742,0.3608,61217.0,61209.0,0.31439474]
[1723638727940,0.3608,61212.0,61205.0,0.31439474]
[1723638728136,0.3608,61206.0,61179.0,0.3608]
[1723638728336,0.3608,61206.0,61148.0,0.00244]
[1723638728337,0.3608,61190.0,61181.0,0.3608]
[1723638728531,0.3608,61190.0,61121.0,0.589]
[1723638728532,0.589,61182.0,61161.0,0.3608]
[1723638728838,0.54881432,61189.0,61180.0,0.31439474]
[1723638729140,0.589,61182.0,61160.0,0.3608]
[1723638729328,0.3608,61164.0,61155.0,0.3608]
[1723638729735,0.1836818,61163.0,61148.0,0.3608]
[1723638729929,0.1836818,61163.0,61156.0,0.3608]
[1723638730132,0.3608,61178.0,61162.0,0.3608]
[1723638730326,0.3608,61192.0,61177.0,0.3608]
[1723638730634,0.3608,61192.0,61170.0,0.3608]
[1723638730635,0.081707,61167.0,61165.0,0.00024519]
[1723638730938,0.72172835,61166.0,61145.0,0.3608]
[1723638731127,0.08171,61164.0,61149.0,0.31439474]
[1723638731329,0.3608,61156.0,61145.0,0.3608]
[1723638731533,0.3608,61148.0,61121.0,0.3608]
[1723638731832,0.3608,61125.0,61105.0,0.3608]
[1723638732033,0.36098107,61125.0,61105.0,0.3608]
[1723638732236,0.36098107,61125.0,61097.0,0.3608]
[1723638732237,0.3608,61120.0,61097.0,0.3608]
[1723638732538,0.081724,61154.0,61092.0,0.3608]
[1723638732539,0.081798,61099.0,61092.0,0.3608]
[1723638732836,0.3608,61095.0,61085.0,0.31439474]
[1723638733036,0.3608,61089.0,61072.0,0.3608]
[1723638733234,0.081828,61076.0,61072.0,0.31439474]
[1723638733427,0.081834,61072.0,61062.0,0.3608]
[1723638733628,0.00013182,61075.0,61062.0,0.3608]
[1723638733829,0.081842,61066.0,61050.0,0.00016867]
[1723638734034,0.00014621,61065.0,61061.0,0.0002456]
[1723638734432,0.36094621,61065.0,61061.0,0.0002456]
[1723638734628,0.081855,61056.0,61050.0,0.00016867]
[1723638734829,0.0001651,61055.0,61039.0,0.3608]
[1723638735032,0.0001651,61055.0,61043.0,0.31439474]
[1723638735229,0.0001651,61055.0,61014.0,0.3608]
[1723638735230,0.9498,61044.0,61014.0,0.3608]
[1723638735440,0.589,61030.0,61016.0,0.3608]
[1723638735637,0.081894,61027.0,61016.0,0.3608]
[1723638735837,0.00020122,61026.0,61007.0,0.3608]
[1723638736033,0.589,61016.0,61008.0,0.31439474]
[1723638736236,0.9498,61031.0,61015.0,0.31439474]
[1723638736434,0.081916,61011.0,60997.0,0.3608]
[1723638736629,0.000164,61010.0,60997.0,0.3608]
[1723638736835,0.000164,61010.0,61002.0,0.3608]
[1723638737134,0.3608,61008.0,61002.0,0.3608]
[1723638737330,0.000164,61010.0,60985.0,0.00104913]
[1723638737331,0.7216,61003.0,60985.0,0.00104913]
[1723638737537,0.589,61005.0,61002.0,0.31439474]
[1723638737733,0.00019265,61004.0,60995.0,0.3608]
[1723638737940,0.00019265,61004.0,60994.0,0.31439474]
[1723638738141,0.00019265,61004.0,60995.0,0.31439474]
[1723638738344,0.00019265,61004.0,60990.0,0.31439474]
[1723638738345,0.3608,61002.0,60990.0,0.31439474]
[1723638738548,0.3608,61002.0,60985.0,0.00104913]
[1723638738549,0.589,60992.0,60985.0,0.00104913]
[1723638738749,0.589,60992.0,60988.0,0.00024583]
[1723638738750,0.00014664,60991.0,60988.0,0.00024583]
[1723638739049,0.00024583,61006.0,60990.0,0.67519474]
[1723638739249,0.00024583,61006.0,61005.0,0.3608]
[1723638739440,0.081855,61056.0,61005.0,0.3608]
[1723638739441,0.589,61044.0,61010.0,0.3608]
[1723638739643,0.17071062,61040.0,61024.0,0.3608]
[1723638739840,0.589,61044.0,61032.0,0.3608]
[1723638740036,0.09047431,61108.0,61006.0,0.081921]
[1723638740037,0.589,61058.0,61043.0,0.7216]
[1723638740343,0.589,61058.0,61055.0,0.081856]
[1723638740344,0.0001682,61057.0,61055.0,0.081856]
[1723638740850,0.0001682,61057.0,61054.0,0.603455]
[1723638741144,0.00041383,61057.0,61055.0,0.573215]
[1723638741339,0.589,61087.0,61056.0,0.49136]
[1723638741545,0.589,61087.0,61073.0,0.3608]
[1723638741740,0.3608,61093.0,61080.0,0.3608]
[1723638741949,0.3608,61093.0,61085.0,0.3608]
[1723638742338,0.00011802,61092.0,61085.0,0.3608]
[1723638742537,0.00011802,61092.0,61091.0,0.3608]
[1723638742754,0.00011802,61092.0,61091.0,1.25188]
[1723638742945,0.00011802,61092.0,61091.0,0.3608]
[1723638743152,0.00011802,61092.0,61091.0,0.89108]
[1723638743337,0.00011802,61092.0,61085.0,0.3608]
[1723638743537,0.589,61086.0,61083.0,0.00024563]
[1723638743740,0.36095716,61085.0,61083.0,0.00024563]
[1723638743947,0.589,61073.0,61049.0,0.3608]
[1723638744248,0.3608,61063.0,61054.0,0.3608]
[1723638744442,0.00014974,61072.0,61054.0,0.3608]
[1723638744443,0.00012972,61062.0,61054.0,0.3608]
[1723638744640,0.3608,61055.0,61038.0,0.3608]
[1723638744847,0.00012972,61062.0,61038.0,0.3608]
[1723638744848,0.00015716,61054.0,61038.0,0.3608]
[1723638745043,0.00015716,61054.0,61052.0,0.081859]
[1723638745250,0.00015716,61054.0,61038.0,0.3608]
[1723638745453,0.3608,61039.0,61024.0,0.3608]
[1723638745649,0.08188,61037.0,61029.0,0.36097116]
[1723638745843,0.00015716,61038.0,61034.0,0.3608]
[1723638746153,0.00015716,61038.0,61029.0,0.36097116]
[1723638746539,0.17561909,61053.0,61050.0,0.081862]
[1723638746744,0.17537346,61053.0,61047.0,0.3608]
[1723638746938,0.3608,61068.0,61051.0,0.3608]
[1723638747139,0.3608,61068.0,61056.0,0.3608]
[1723638747344,0.00024563,61058.0,61051.0,0.3608]
[1723638747752,0.00024563,61058.0,61057.0,0.442653]
[1723638747956,0.00024563,61058.0,61057.0,0.3608]
[1723638748253,0.00024563,61058.0,61057.0,1.25216]
[1723638748550,0.3608,61097.0,61058.0,0.081851]
[1723638748754,0.081796,61100.0,61084.0,0.3608]
[1723638748950,0.3608,61091.0,61063.0,0.3608]
[1723638749150,0.54045851,61096.0,61077.0,0.3608]
[1723638749354,0.3608,61087.0,61077.0,0.3608]
[1723638749546,0.3608,61097.0,61077.0,0.3608]
[1723638749747,0.3608,61098.0,61077.0,0.3608]
[1723638750053,0.17965851,61102.0,61026.0,0.59136]
[1723638750054,0.3608,61081.0,61076.0,0.00024563]
[1723638750247,0.00024563,61088.0,61084.0,0.081816]
[1723638750451,0.00024563,61088.0,61079.0,0.3608]
[1723638750452,0.00024563,61088.0,61087.0,0.3608]
[1723638750647,0.18826678,61095.0,61092.0,0.081806]
[1723638750953,0.18826678,61097.0,61094.0,0.3608]
[1723638751257,0.18826678,61097.0,61096.0,0.3608]
[1723638751442,0.3608,61140.0,61096.0,0.7216]
[1723638751643,0.08175,61134.0,61127.0,0.3608]
[1723638751854,0.3608,61137.0,61127.0,0.3608]
[1723638751855,0.081751,61133.0,61127.0,0.3608]
[1723638752053,0.081751,61133.0,61048.0,0.08143]
[1723638752054,0.08177,61119.0,61106.0,0.3608]
[1723638752261,0.11,61133.0,61085.0,0.3608]
[1723638752262,0.3608,61107.0,61085.0,0.3608]
[1723638752558,0.081815,61086.0,61082.0,0.24489855]
[1723638752758,0.3608,61100.0,61084.0,0.3608]
[1723638753051,0.3608,61085.0,61072.0,0.00014004]
[1723638753255,0.081831,61073.0,61072.0,0.00014004]
[1723638753454,0.3608,61076.0,61052.0,0.3608]
[1723638753752,0.3608,61076.0,60953.0,0.22546717]
[1723638753753,0.081865,61049.0,61041.0,0.3608]
[1723638753947,0.081841,61066.0,61046.0,0.3608]
[1723638754143,0.17126164,61073.0,61062.0,0.081845]
[1723638754344,0.3608,61073.0,61059.0,0.3608]
[1723638754563,0.3608,61063.0,61046.0,0.3608]
[1723638754851,0.7216,61047.0,61039.0,1e-08]
[1723638755061,0.442676,61040.0,61039.0,1e-08]
[1723638755250,0.36094004,61040.0,61029.0,0.00018729]
[1723638755445,0.00014004,61040.0,61035.0,0.3608]
[1723638755844,0.3608,61037.0,61029.0,0.00018729]
[1723638756056,0.00014004,61040.0,61029.0,0.00018729]
[1723638756057,0.3608,61057.0,61034.0,0.3608]
[1723638756255,0.3608,61076.0,61056.0,0.3608]
[1723638756455,0.3608,61066.0,61057.0,0.3608]
[1723638756650,0.442628,61076.0,61057.0,0.3608]
[1723638756651,0.081833,61073.0,61057.0,0.3608]
[1723638756953,0.00024552,61072.0,61067.0,0.3608]
[1723638757157,0.00024552,61072.0,61057.0,0.3608]
[1723638757158,0.3608,61068.0,61057.0,0.3608]
[1723638757353,0.3608,61071.0,61057.0,0.3608]
[1723638757653,0.081852,61058.0,61044.0,0.3608]
[1723638757856,0.3608,61060.0,61050.0,0.3608]
[1723638758255,0.18722442,61067.0,61059.0,0.7216]
[1723638758459,0.18722442,61067.0,61066.0,0.3608]
[1723638759059,0.00024552,61069.0,61066.0,0.3608]
[1723638759246,0.3608,61095.0,61071.0,0.081833]
[1723638759446,0.1793156,61094.0,61081.0,0.3608]
[1723638759662,0.081806,61092.0,61086.0,0.3608]
[1723638759850,0.3608,61095.0,61086.0,0.3608]
[1723638760154,0.933683,61095.0,61086.0,0.3608]
[1723638760359,0.3608,61104.0,61086.0,0.3608]
[1723638760360,0.081812,61088.0,61086.0,0.3608]
[1723638760551,0.3608,61104.0,61086.0,0.3608]
[1723638760552,0.081792,61102.0,61086.0,0.3608]
[1723638760748,0.00024552,61097.0,61086.0,0.3608]
[1723638760955,0.00024552,61097.0,61091.0,0.3608]
[1723638761153,0.00024552,61097.0,61084.0,0.36104552]
[1723638761557,0.3608,61086.0,61072.0,0.3608]
[1723638761751,0.3608,61086.0,61067.0,0.3608]
[1723638761752,0.3608,61085.0,61067.0,0.3608]
[1723638761947,0.3608,61080.0,61067.0,0.3608]
[1723638762352,0.3608,61080.0,61074.0,0.3608]
[1723638762749,0.18209514,61085.0,61079.0,0.3608]
[1723638762954,0.18209514,61085.0,61074.0,0.3608]
[1723638763153,0.081823,61080.0,61074.0,0.3608]
[1723638763358,0.08183,61074.0,61071.0,0.00024552]
[1723638763562,0.3608,61086.0,61071.0,0.00024552]
[1723638763756,0.081832,61073.0,61071.0,0.00024552]
[1723638763963,0.3608,61073.0,61056.0,0.3608]
[1723638764164,0.081844,61064.0,61056.0,0.3608]
[1723638764355,0.589,61071.0,61050.0,0.3608]
[1723638764356,0.49132,61063.0,61050.0,0.3608]
[1723638764554,0.081851,61058.0,61050.0,0.3608]
[1723638764754,0.08186,61052.0,61050.0,0.3608]
[1723638765064,0.7608,61058.0,61044.0,0.3608]
[1723638765268,0.7608,61058.0,61033.0,0.3608]
[1723638765269,0.081868,61046.0,61045.0,0.00016218]
[1723638765663,0.89144,61046.0,61028.0,0.3608]
[1723638765962,0.081888,61031.0,61016.0,0.3608]
[1723638766363,0.49156,61031.0,61022.0,0.3608]
[1723638766671,0.49156,61030.0,61022.0,0.3608]
[1723638767263,1.13663615,61030.0,61006.0,0.3608]
[1723638767556,0.3608,61027.0,61008.0,0.3608]
[1723638767859,0.3608,61138.0,61058.0,0.3608]
[1723638768064,0.589,61119.0,61105.0,0.3608]
[1723638768265,0.689,61119.0,61105.0,0.3608]
[1723638768466,0.67286723,61118.0,61099.0,0.3608]
[1723638768769,0.18175994,61118.0,61099.0,0.3608]
[1723638768958,0.29175994,61118.0,61099.0,0.3608]
[1723638769161,0.589,61105.0,61091.0,0.3608]
[1723638769463,0.589,61092.0,61091.0,0.3608]
[1723638769668,0.00011912,61092.0,61083.0,0.3608]
[1723638770060,0.68020407,61091.0,61083.0,0.3608]
[1723638770264,0.081816,61085.0,61083.0,0.3608]
[1723638770464,0.081816,61085.0,61025.0,0.22546717]
[1723638770465,0.4427688,61084.0,61072.0,0.3608]
[1723638770661,0.3608,61078.0,61065.0,0.3608]
[1723638770862,0.589,61067.0,61053.0,0.3608]
[1723638771061,0.00015758,61066.0,61053.0,0.3608]
[1723638771262,0.00015758,61066.0,61048.0,0.3608]
[1723638771263,0.3608,61063.0,61048.0,0.3608]
[1723638771463,0.589,61067.0,61053.0,0.3608]
[1723638771666,0.18031114,61062.0,61053.0,0.3608]
[1723638771869,0.18055667,61062.0,61053.0,0.3608]
[1723638772163,0.18055667,61062.0,61061.0,0.3608]
[1723638772361,0.00042113,61062.0,61061.0,0.3608]
[1723638772571,0.89178113,61062.0,61053.0,0.3608]
[1723638772872,0.00042113,61062.0,61053.0,0.3608]
[1723638773168,0.00042113,61062.0,61061.0,0.3608]
[1723638773868,0.49174113,61062.0,61061.0,0.3608]
[1723638774065,0.89174113,61062.0,61054.0,0.3608]
[1723638774270,0.18441125,61062.0,61054.0,0.3608]
[1723638774570,0.00042113,61062.0,61054.0,0.3608]
[1723638774963,0.00042113,61062.0,61048.0,0.3608]
[1723638775164,0.4914,61061.0,61054.0,0.3608]
[1723638775362,0.3608,61056.0,61038.0,0.3608]
[1723638775563,0.00014959,61055.0,61044.0,0.3608]
[1723638775867,0.00014959,61055.0,61049.0,0.3608]
[1723638776167,0.00014959,61055.0,61054.0,0.3608]
[1723638776672,0.00014959,61055.0,61054.0,0.7216]
[1723638777068,0.00014959,61055.0,61036.0,0.00012171]
[1723638777069,0.49150959,61055.0,61042.0,0.3608]
[1723638777270,0.3608,61047.0,61036.0,0.00012171]
[1723638777576,0.00012099,61046.0,61036.0,0.00012171]
[1723638777776,0.00012099,61046.0,61039.0,0.3608]
[1723638778071,0.00012099,61046.0,61045.0,0.3608]
[1723638779276,0.3608,61074.0,61045.0,0.3608]
[1723638779473,0.3608,61074.0,61064.0,0.3608]
[1723638779774,0.17412921,61068.0,61058.0,0.3608]
[1723638779972,0.25596721,61068.0,61050.0,0.3608]
[1723638780284,0.25596721,61068.0,61062.0,0.3608]
[1723638780285,6.63e-05,61067.0,61062.0,0.3608]
[1723638780572,6.63e-05,61067.0,61066.0,0.44264]
[1723638780777,0.00024573,61071.0,61066.0,0.3608]
[1723638780975,0.00024573,61071.0,61070.0,0.081835]
[1723638781276,0.00024573,61071.0,61068.0,0.081838]
[1723638781473,0.401373,61117.0,61068.0,0.49124]
[1723638781474,0.3608,61101.0,61068.0,0.49124]
[1723638781676,0.3608,61101.0,61092.0,0.3608]
[1723638781867,0.3608,61101.0,61086.0,0.3608]
[1723638781868,0.3608,61093.0,61086.0,0.3608]
[1723638782175,0.3608,61093.0,61076.0,0.3608]
[1723638782374,0.3608,61087.0,61080.0,0.3608]
[1723638782576,0.3608,61087.0,61074.0,0.44263]
[1723638782770,0.3608,61088.0,61078.0,0.36104551]
[1723638782971,0.00024551,61091.0,61085.0,0.3608]
[1723638783669,0.081823,61079.0,61078.0,0.00024551]
[1723638783971,0.3608,61087.0,61060.0,0.3608]
[1723638783972,0.081847,61061.0,61060.0,0.3608]
[1723638784169,0.081846,61062.0,61053.0,0.3608]
[1723638784377,0.3608,61067.0,61058.0,0.3608]
[1723638784569,0.3608,61081.0,61066.0,0.3608]
[1723638784772,0.08183,61074.0,61068.0,0.3608]
[1723638784973,0.3608,61074.0,61055.0,0.3608]
[1723638785173,0.3608,61074.0,61066.0,0.00024551]
[1723638785174,0.081839,61067.0,61066.0,0.00024551]
[1723638785379,0.08206951,61079.0,61066.0,0.36104551]
[1723638785380,0.00024551,61079.0,61066.0,0.36104551]
[1723638785577,0.00024551,61079.0,61074.0,0.3608]
[1723638786273,0.3608,61103.0,61075.0,0.3608]
[1723638786473,0.081804,61094.0,61080.0,0.3608]
[1723638786667,0.3608,61089.0,61080.0,0.3608]
[1723638787079,0.3608,61098.0,61080.0,0.3608]
[1723638787284,0.3608,61101.0,61080.0,0.3608]
[1723638787580,0.002,69084.0,61098.0,0.3608]
[1723638787581,0.3608,61115.0,61098.0,0.3608]
[1723638787877,0.3608,61115.0,61101.0,0.3608]
[1723638788073,0.00024551,61113.0,61101.0,0.3608]
[1723638788268,0.00024551,61113.0,61107.0,0.3608]
[1723638788670,0.00024551,61113.0,61100.0,0.08203951]
[1723638788671,0.00024551,61113.0,61100.0,0.00024551]
[1723638788878,0.3608,61101.0,61079.0,0.3608]
[1723638789080,0.081822,61080.0,61079.0,0.3608]
[1723638789273,0.36104551,61113.0,61079.0,0.3608]
[1723638789473,0.36104551,61113.0,61103.0,0.3608]
[1723638789474,0.3608,61113.0,61103.0,0.3608]
[1723638789678,0.081761,61126.0,61109.0,0.3608]
[1723638789877,0.081758,61129.0,61111.0,0.3608]
[1723638790171,0.3608,61135.0,61122.0,0.3608]
[1723638790571,0.3608,61142.0,61130.0,0.3608]
[1723638790773,0.3608,61156.0,61141.0,0.3608]
[1723638791081,0.3608,61156.0,61147.0,0.3608]
[1723638791287,0.081718,61158.0,61147.0,0.3608]
[1723638791288,0.081718,61158.0,61155.0,0.3608]
[1723638791472,0.3608,61166.0,61147.0,0.3608]
[1723638791673,0.081646,61212.0,61160.0,0.3608]
[1723638791674,0.3608,61182.0,61160.0,0.3608]
[1723638791875,0.442486,61182.0,61160.0,0.3608]
[1723638792084,0.3608,61182.0,61172.0,0.3608]
[1723638792283,0.00024531,61177.0,61172.0,0.3608]
[1723638792480,0.3608,61197.0,61173.0,0.8512]
[1723638792682,0.3608,61197.0,61187.0,0.3608]
[1723638792878,0.3608,61210.0,61193.0,0.3608]
[1723638793073,0.081653,61207.0,61193.0,0.3608]
[1723638793285,0.081635,61221.0,61203.0,0.3608]
[1723638793488,0.3608,61225.0,61215.0,0.3608]
[1723638793687,0.3608,61239.0,61215.0,0.3608]
[1723638793984,0.3608,61239.0,61171.0,0.0817]
[1723638793985,0.9498,61216.0,61192.0,0.3608]
[1723638794287,0.3608,61206.0,61192.0,0.3608]
[1723638794881,0.081672,61193.0,61179.0,0.3608]
[1723638795086,0.3608,61194.0,61179.0,0.3608]
[1723638795380,0.3608,61183.0,61173.0,0.3608]
[1723638795581,0.3608,61183.0,61167.0,0.36099206]
[1723638795778,0.3608,61180.0,61160.0,0.3608]
[1723638795978,0.3608,61185.0,61176.0,0.3608]
[1723638796179,0.18255567,61193.0,61176.0,0.3608]
[1723638796180,0.00024509,61181.0,61176.0,0.3608]
[1723638796579,0.00024509,61181.0,61171.0,0.3608]
[1723638796779,0.00024509,61181.0,61169.0,0.00024509]
[1723638796780,0.00012781,61180.0,61169.0,0.00024509]
[1723638796982,0.00012781,61180.0,61179.0,0.3608]
[1723638797183,2.863e-05,61180.0,61179.0,0.3608]
[1723638797382,0.3608,61200.0,61180.0,0.49036]
[1723638797684,0.589,61202.0,61185.0,0.3608]
[1723638797883,0.3608,61197.0,61180.0,0.3608]
[1723638798091,0.589,61202.0,61185.0,0.3608]
[1723638798391,0.3608,61213.0,61199.0,0.3608]
[1723638798392,6.425e-05,61201.0,61199.0,0.3608]
[1723638798776,0.00024509,61200.0,61199.0,0.3608]
[1723638799085,0.00024509,61200.0,61187.0,0.00024509]
[1723638799280,0.00024509,61200.0,61147.0,0.081731]
[1723638799281,0.9498,61188.0,61172.0,0.3608]
[1723638799483,0.08169,61179.0,61172.0,0.3608]
[1723638799687,0.3608,61184.0,61178.0,0.3608]
[1723638799890,6.425e-05,61183.0,61178.0,0.3608]
[1723638800395,0.3608,61221.0,61182.0,0.3608]
[1723638800685,0.3608,61221.0,61196.0,0.3608]
[1723638800890,0.3608,61206.0,61196.0,0.3608]
[1723638801090,0.081665,61198.0,61189.0,0.3608]
[1723638801384,0.3608,61206.0,61189.0,0.3608]
[1723638801590,0.3608,61206.0,61195.0,0.3608]
[1723638801885,0.081659,61203.0,61202.0,0.3608]
[1723638802083,0.00024509,61208.0,61202.0,0.3608]
[1723638802284,0.3608,61240.0,61207.0,0.3608]
[1723638802592,0.3608,61250.0,61233.0,0.3608]
[1723638802800,0.3608,61250.0,61243.0,0.3608]
[1723638802987,0.081581,61261.0,61249.0,0.3608]
[1723638803487,0.3608,61267.0,61256.0,0.3608]
[1723638803684,0.3608,61281.0,61264.0,0.3608]
[1723638803987,0.081563,61274.0,61264.0,0.3608]